[Event "Mongolian Championship Women 2022"]
[Site "Chingis Khentii"]
[Date "2022.05.15"]
[Round "4.5"]
[White "Munguntuul, Batkhuyag"]
[Black "Khulan, Enkhsaikhan"]
[Result "1-0"]
[ECO "C11"]
[WhiteElo "2443"]
[BlackElo "2111"]
[Annotator "TA"]
[PlyCount "99"]
[EventDate "2022.05.12"]
[EventType "tourn"]
[EventCountry "MGL"]
[SourceTitle "playchess.com"]
[Source "ChessBase"]
[SourceQuality "1"]
[TimeControl "40/5400+30:1800+30"]

{[%evp 17,99,4,5,0,2,2,14,9,21,17,25,29,27,27,28,28,73,88,113,105,105,104,158,152,152,158,154,154,145,142,200,197,200,184,173,172,164,148,193,137,196,174,152,146,450,454,447,448,433,416,453,373,469,457,557,485,487,477,492,491,466,454,451,454,471,460,517,528,2085,1176,929,903,10758,1610,4662,1243,29987,29988,29989,29989,29989,29990,29990,29990]} 1. e4 {[%emt 0:00:01]} e6 {[%emt 0:00:19]} 2. d4 {[%emt 0:00:03]} d5 {[%emt 0:00:07]} 3. Nc3 {[%emt 0:00:02]} Nf6 {[%emt 0:03:10]} 4. e5 {[%emt 0:00:08]} Nfd7 {[%emt 0:00:04]} 5. f4 {[%emt 0:00:07]} c5 {[%emt 0:00:04]} 6. Nf3 {[%emt 0:00:05]} Nc6 {[%emt 0:00:18]} 7. Be3 {[%emt 0:00:05]} a6 {[%emt 0:00:21]} 8. Qd2 {[%emt 0:00:16]} b5 {[%emt 0:00:22]} 9. dxc5 {[%emt 0:00:17]} Bxc5 {[%emt 0:00:12]} 10. Bd3 {[%emt 0:00:39] C11: French: Classical System: 4 e5 and 4 Bg5 dxe4.} Qb6 {[%emt 0:03:17]} (10... d4 11. Nxd4 Nxd4 12. Ne4 $16) 11. Bf2 {[%emt 0:00:21]} Bxf2+ {[%emt 0:01:04]} (11... h6 {is interesting.} 12. O-O Bb7 13. a3 Bxf2+ 14. Qxf2 Qxf2+ 15. Kxf2 g5) 12. Qxf2 {[%emt 0:00:04] The position is equal.} Qxf2+ {[%emt 0:02:03]} 13. Kxf2 {[%emt 0:00:04]} Bb7 {[%emt 0:00:46]} (13... O-O 14. a3 Bb7 15. Rhe1 b4 16. axb4 Nxb4 17. Nd4 Nc5 18. Ke3 f6 19. Na4 fxe5 20. Nxc5 exd4+ {0-1 (50) Munguntuul,B (2421)-Khulan,E (2085) Murun 2019}) 14. Rhe1 {[%emt 0:11:21] [#]} O-O $146 {[%emt 0:06:10]} ({Predecessor:} 14... h5 15. Ne2 g6 16. Ned4 Nxd4 17. Nxd4 Nc5 18. Ke3 Ke7 19. c3 Rac8 20. Bc2 Rc7 {½-½ (44) Sergienko,S (2335)-Sumaneev,D (2450) Chess.com INT 2020}) 15. Ne2 {[%emt 0:22:02]} f6 {[%emt 0:06:21]} 16. exf6 {[%emt 0:09:04]} gxf6 {[%emt 0:02:55]} 17. Ned4 {[%emt 0:02:13]} Nxd4 {[%emt 0:05:59]} 18. Nxd4 {[%emt 0:00:40]} e5 {[%emt 0:00:07] [#]} 19. Bf5 $1 {[%emt 0:00:29]} Nb6 {[%emt 0:04:30]} (19... Bc8 $142) 20. fxe5 $16 {[%emt 0:05:55]} fxe5 {[%emt 0:00:20]} 21. Rxe5 {[%emt 0:00:07]} Nc4 {[%emt 0:00:09]} 22. Re7 {[%emt 0:01:26][%csl LRb7,LRh7]} Bc8 {[%emt 0:00:09]} 23. g4 {[%emt 0:00:37] 0x0.0024a84a1139dp-1022s more active pieces.} Nxb2 {[%emt 0:02:17]} (23... Bxf5 $16 {keeps fighting.} 24. gxf5 Nd6 25. Rg1+ Kh8) 24. Rae1 {[%emt 0:08:00] Threatens to win with Kg3.} Bxf5 {[%emt 0:16:19]} 25. Nxf5 {[%emt 0:00:34] Intending Rg7+ and mate.} ({But not} 25. gxf5 Rf7 26. Kf3 Nc4 $16) 25... Rf7 {[%emt 0:00:21] Against Rg7+} (25... Rac8 26. Rg7+ Kh8 27. Ree7 Rxc2+ 28. Kg3 Rxf5 29. gxf5 Rc6 30. Rxh7+ Kg8 31. Reg7+ Kf8 32. Ra7) 26. Kg3 {[%emt 0:03:09]} Rxe7 {[%emt 0:03:07]} 27. Rxe7 $18 {[%emt 0:03:47][%mdl 4096] Endgame KRN-KRN} ({Resist} 27. Nxe7+ Kf8 $16) 27... Na4 {[%emt 0:10:00]} 28. Rc7 {[%emt 0:03:45] Against Nc3} (28. g5 $18) 28... Nb6 {[%emt 0:07:10]} (28... Kh8 $16 29. Ne7 Nb6) 29. Rb7 {[%emt 0:05:22]} Nc4 {[%emt 0:00:50]} 30. Ne7+ {[%emt 0:00:23]} Kf7 $2 {[%emt 0:01:39][%mdl 8192] A mistake that costs the game.} (30... Kf8 $16 31. Nxd5 Rd8) 31. Nxd5+ {[%emt 0:00:23]} Kg6 {[%emt 0:00:38]} 32. Nf4+ {[%emt 0:04:01]} Kf6 {[%emt 0:00:12]} 33. Rxh7 {[%emt 0:00:06]} a5 {[%emt 0:03:13]} 34. Rc7 {[%emt 0:01:22]} Nd6 {[%emt 0:02:19]} 35. Rc6 {[%emt 0:05:38]} Ke5 {[%emt 0:01:41]} 36. Rc5+ {[%emt 0:03:36]} Ke4 {[%emt 0:00:39]} 37. h4 {[%emt 0:00:37]} Rf8 {[%emt 0:02:02] [#]} 38. Rc7 $1 {[%emt 0:06:43] aiming for Re7+.} Ke3 {[%emt 0:03:16] Strongly threatening ...Ne4+.} 39. Ng2+ {[%emt 0:00:54]} Ke4 {[%emt 0:02:58]} 40. g5 {[%emt 0:00:00]} Rf3+ {[%emt 0:00:00]} 41. Kh2 {[%emt 0:08:30]} ({Less strong is} 41. Kg4 Nf5 $18) 41... Rf2 {[%emt 0:05:48]} 42. g6 {[%emt 0:00:59] And now g7 would win.} Rf6 {[%emt 0:04:42]} 43. g7 {[%emt 0:02:35]} Rg6 {[%emt 0:00:07]} 44. h5 {[%emt 0:00:30]} Rg4 {[%emt 0:01:27]} 45. Kh3 {[%emt 0:01:24]} (45. h6 $142 Nf5 46. h7 Rxg7 47. Rxg7 Nxg7 48. h8=Q) 45... Rg5 {[%emt 0:00:24]} 46. Nh4 {[%emt 0:01:24]} (46. h6 $142 Nf5 47. h7 Rh5+ 48. Kg4 Rxh7 {[#]} 49. g8=Q $1 Nh6+ 50. Kg5 Nxg8 51. Rxh7) 46... Kf4 {[%emt 0:03:42]} 47. Ng6+ {[%emt 0:01:48] White mates.} Kf3 {[%emt 0:00:08]} 48. g8=Q {[%emt 0:01:12]} Rg3+ {[%emt 0:00:08]} 49. Kh2 {[%emt 0:00:01]} Rg2+ {[%emt 0:00:17]} 50. Kh1 {[%emt 0:00:02] Weighted Error Value: White=0.09 (flawless) /Black=0.32} 1-0

[Event "Mongolian Championship Women 2022"]
[Site "Chingis Khentii"]
[Date "2022.05.15"]
[Round "4.6"]
[White "Enkhtuul, Altan-Ulzii"]
[Black "Nomindalai Tumurbaatar"]
[Result "1-0"]
[ECO "A57"]
[WhiteElo "2228"]
[BlackElo "2111"]
[Annotator "TA"]
[PlyCount "57"]
[EventDate "2022.05.12"]
[EventType "tourn"]
[EventCountry "MGL"]
[SourceTitle "playchess.com"]
[Source "ChessBase"]
[SourceQuality "1"]
[TimeControl "40/5400+30:1800+30"]

{[%evp 9,57,22,16,-42,-43,-114,-110,-119,-112,-115,-114,-168,-160,-156,-162,-153,-166,-173,-182,-181,-64,-300,-295,-281,-281,-281,-228,-229,-235,-417,-265,-258,-258,-264,-254,-247,-91,-103,0,0,0,0,29982,29983,29983,29984,29986,29987,29992,29993]} 1. d4 {[%emt 0:00:19]} Nf6 {[%emt 0:00:11]} 2. c4 {[%emt 0:00:07]} c5 {[%emt 0:00:25]} 3. d5 {[%emt 0:00:06]} b5 {[%emt 0:00:07]} 4. f3 {[%emt 0:00:08]} e6 {[%emt 0:19:25]} 5. e4 {[%emt 0:02:02]} bxc4 {[%emt 0:03:50]} (5... Nxe4 6. fxe4 Qh4+ 7. Ke2) (5... Nxe4 $2 6. fxe4 Qh4+ 7. Ke2 $18) 6. dxe6 {[%emt 0:03:05] A57: Benko/Volga Gambit.} (6. Nc3) (6. Na3 $11) 6... fxe6 $15 {[%emt 0:00:56]} 7. e5 {[%emt 0:00:33]} (7. Bxc4 d5 8. Bb3) (7. Bxc4 $15 d5 8. Bb3) 7... Nd5 $17 {[%emt 0:00:16] [#]} 8. f4 $146 {[%emt 0:40:08] Black is better.} ({Predecessor:} 8. g3 Bb7 9. Bxc4 Qc7 10. Qe2 Nc6 11. Bxd5 Nd4 12. Qd1 Qxe5+ 13. Kf2 Qxd5 14. Nc3 {0-1 (27) Daniluk,J (1980)-Rekhson,V (2259) Edmonton 2014}) 8... Ba6 {[%emt 0:08:01]} 9. Nf3 {[%emt 0:07:54]} Nc6 {[%emt 0:09:01]} 10. Na3 {[%emt 0:10:40]} (10. Bd2 $17 {might work better.}) 10... Qa5+ $19 {[%emt 0:01:56]} 11. Kf2 {[%emt 0:00:07]} c3 {[%emt 0:01:11]} 12. Nc4 {[%emt 0:09:09]} Bxc4 {[%emt 0:09:36]} 13. Bxc4 {[%emt 0:00:02]} cxb2 {[%emt 0:00:13]} 14. Bxb2 {[%emt 0:00:10]} Qb4 {[%emt 0:00:43]} ({Better is} 14... Rb8 $19 15. Qc2 Ncb4) 15. Bxd5 $2 {[%emt 0:00:34]} (15. Qc2 $1 $15) 15... Qxb2+ {[%emt 0:05:07]} 16. Kg3 {[%emt 0:00:04] Hoping for Rb1.} exd5 {[%emt 0:10:56]} 17. Qxd5 {[%emt 0:00:09]} Be7 {[%emt 0:01:00] Strongly threatening ...Rd8.} 18. e6 {[%emt 0:05:23]} O-O-O {[%emt 0:13:07]} 19. Rhd1 $2 {[%emt 0:12:17]} (19. Rab1 Qc2 20. exd7+ Kc7 21. Ne5 (21. Rhd1 $2 Qg6+ 22. Ng5 Rb8 $19) 21... Qc3+ 22. Kf2 Qd4+ 23. Qxd4 Nxd4 24. Nf7) 19... Qf6 {[%emt 0:02:20]} (19... Nd4 20. Nxd4 Qb7 21. Nf5 Qxd5 22. Nxe7+ (22. Rxd5 Rhe8 $16) 22... Kb8 23. Rxd5 $18) 20. exd7+ {[%emt 0:00:58]} Kc7 $1 {[%emt 0:00:10]} 21. Ng5 {[%emt 0:00:41]} Qg6 {[%emt 0:01:19]} 22. h4 {[%emt 0:02:26][%cal Oh4h5] [#] h5! is the strong threat.} Bxg5 $2 {[%emt 0:00:15]} (22... h6 23. h5 Nb4 24. Qe5+ (24. hxg6 Nxd5 25. Nf7 Bf6 $17) 24... Bd6 25. hxg6 $18) (22... Nb4 $1 $19 {[%cal Rb4d5] and Black stays clearly on top.} 23. Qf3 Rhf8) 23. hxg5 {[%emt 0:00:08] [#]} h6 {[%emt 0:02:56]} (23... Rhf8 $1 $17 {[%cal Rf8f5] And now ...Rf5 would win.} 24. Rab1 (24. Qxc5 $2 Rf5 $19) 24... Rf5) 24. Rac1 $11 {[%emt 0:00:08]} hxg5 {[%emt 0:03:27]} 25. fxg5 $40 {[%emt 0:00:03][%mdl 128] White has some attack. Dancing on a razor blade.} Rh6 $2 {[%emt 0:05:18][%mdl 8192]} (25... Qh7 $11 26. Qd6+ (26. Qxc5 {leads to mate.} Qh2+ 27. Kf3 Rdf8+ 28. Ke3 Rh3+ 29. gxh3 Qf2+ 30. Kd3 Rf3+) (26. Rxc5 $2 Qh4+ 27. Kf3 Rhf8+ 28. Ke3 Qg3+ 29. Qf3 Rxf3+ $19) 26... Kb7 27. Rb1+ Nb4 28. Rxb4+ (28. Qxc5 {is a self mate.} Qh2+ 29. Kg4 Qxg2+ 30. Kf5 Rdf8+) 28... cxb4 29. Qd5+ Kc7 30. Qd6+ Kb7 31. Qd5+ Kc7 32. Qd6+ Kb7) 26. Qxc5 {[%emt 0:00:38][%cal Rc5a7] White mates.} Kb8 {[%emt 0:01:05]} 27. Qb5+ {[%emt 0:00:56]} Ka8 {[%emt 0:00:02]} 28. Rb1 {[%emt 0:00:30][%csl Gb1][%cal Rb5b7] Active counter play!} Na5 {[%emt 0:01:06]} 29. Qxa5 {[%emt 0:01:14] Weighted Error Value: White=0.33/Black=0.51} 1-0

[Event "Mongolian Championship Women 2022"]
[Site "Chingis Khentii"]
[Date "2022.05.16"]
[Round "5.1"]
[White "Nomindalai Tumurbaatar"]
[Black "Altantuya, Boldbaatar"]
[Result "1-0"]
[ECO "E05"]
[WhiteElo "2111"]
[BlackElo "2263"]
[Annotator "TA"]
[PlyCount "103"]
[EventDate "2022.05.12"]
[EventType "tourn"]
[EventCountry "MGL"]
[SourceTitle "playchess.com"]
[Source "ChessBase"]
[SourceQuality "1"]
[TimeControl "40/5400+30:1800+30"]

{[%evp 23,103,8,18,15,16,16,15,19,17,15,21,14,19,0,35,35,43,0,0,0,7,-12,5,-12,11,0,0,-32,14,8,8,6,8,8,8,8,64,59,55,63,64,65,56,42,37,23,58,64,155,164,156,150,234,58,63,60,216,209,255,244,292,239,253,247,260,251,227,155,484,220,222,222,220,168,604,599,778,764,893,860,29989,29990]} 1. d4 {[%emt 0:00:08] Marchand,A/Primel,D} e6 {[%emt 0:00:15]} 2. g3 {[%emt 0:03:08]} Nf6 {[%emt 0:00:23]} 3. c4 {[%emt 0:00:24]} Be7 {[%emt 0:01:01]} 4. Bg2 {[%emt 0:00:40]} d5 {[%emt 0:00:09]} 5. Nf3 {[%emt 0:00:31]} O-O {[%emt 0:00:08]} 6. O-O {[%emt 0:00:23]} dxc4 {[%emt 0:00:28]} 7. Qc2 {[%emt 0:00:40]} a6 {[%emt 0:00:39]} 8. a4 {[%emt 0:00:24]} Bd7 {[%emt 0:00:17]} 9. Qxc4 {[%emt 0:00:40]} Bc6 {[%emt 0:00:16]} 10. Bg5 {[%emt 0:00:25]} Bd5 {[%emt 0:01:14]} 11. Qc2 {[%emt 0:00:16]} Be4 {[%emt 0:01:03]} 12. Qc1 {[%emt 0:05:12]} Nc6 {[%emt 0:00:28][%cal Bb8c6,Bc6b4,Bb4d3][%mdl 32]} 13. e3 {[%emt 0:17:16] E05: Open Catalan: 5 Nf3 Be7.} h6 {[%emt 0:05:42]} 14. Bxf6 {[%emt 0:01:41]} Bxf6 {[%emt 0:00:03]} 15. Nc3 {[%emt 0:00:22][%cal Bb1c3,Bc3e4,Be4c5][%mdl 32] The position is equal.} Bh7 {[%emt 0:04:28]} 16. Rd1 {[%emt 0:01:07] [#]} Nb4 $146 {[%emt 0:01:53] Against d5} ({Predecessor:} 16... Qe8 17. Nd2 e5 18. Nce4 Bd8 19. d5 Na7 20. d6 cxd6 21. Nxd6 Qe7 22. Nxb7 Rc8 {1-0 (37) Postny,E (2585)-Melia,S (2462) Aix les Bains 2011 CBM 142 Extra [Marchand,A/Primel,D]}) 17. Ne1 {[%emt 0:09:22]} c6 {[%emt 0:04:02]} 18. Ne4 {[%emt 0:01:46]} Be7 {[%emt 0:00:26]} 19. Nc5 {[%emt 0:02:21]} Qc7 {[%emt 0:05:04]} 20. Ned3 {[%emt 0:02:09]} Nxd3 {[%emt 0:03:12]} 21. Nxd3 {[%emt 0:00:06]} a5 {[%emt 0:02:00]} 22. Qc4 {[%emt 0:02:06]} Rfd8 {[%emt 0:01:19]} 23. Rac1 {[%emt 0:00:53]} Rac8 {[%emt 0:02:13]} 24. Nc5 {[%emt 0:08:24]} Qb6 {[%emt 0:08:20]} 25. Qc3 {[%emt 0:15:55]} Qa7 {[%emt 0:03:00]} (25... e5 $15 {feels stronger.}) 26. Bf3 {[%emt 0:01:52]} Rc7 {[%emt 0:15:09]} 27. Qb3 {[%emt 0:04:52]} Rb8 {[%emt 0:04:18]} 28. Nd3 {[%emt 0:01:54]} Bxd3 {[%emt 0:07:55]} 29. Qxd3 {[%emt 0:04:10]} b5 {[%emt 0:04:50]} ({Black should try} 29... Qb6 $11) 30. Bxc6 {[%emt 0:01:29]} bxa4 {[%emt 0:00:06]} 31. Rc2 {[%emt 0:00:59]} Rb3 {[%emt 0:01:11]} 32. Qe4 {[%emt 0:01:51]} Rb4 {[%emt 0:09:28]} 33. Rdc1 {[%emt 0:00:35][%cal Oc6a4]} Bd6 {[%emt 0:01:37]} 34. Qf3 {[%emt 0:00:51]} Qb6 {[%emt 0:01:30]} 35. Be8 {[%emt 0:01:36] Strongly threatening Rxc7.} Ra7 {[%emt 0:04:35]} (35... Qb7 $14 36. d5 Rxc2 37. Rxc2 a3 38. bxa3 Rb1+ 39. Kg2 exd5) 36. Rc8 $16 {[%emt 0:04:01][%csl LRa4,LRf7] Intending Bxf7+ and mate.} Bf8 {[%emt 0:00:16]} 37. R1c6 $1 {[%emt 0:02:07] White is much more active.} Qb7 {[%emt 0:00:24]} (37... Qb5 $16) 38. Qf4 $2 {[%emt 0:03:51]} (38. d5 $1 $18 {[%cal Rd5e6]} exd5 39. Qxd5) 38... Qe7 $14 {[%emt 0:00:32]} 39. Rc2 $36 {[%emt 0:01:16][%mdl 2048] White fights for an advantage.} a3 $2 {[%emt 0:08:37]} (39... Qf6 $14) 40. bxa3 $18 {[%emt 0:00:00]} Rb1+ {[%emt 0:00:00]} 41. Kg2 {[%emt 0:00:48]} Rbb7 {[%emt 0:10:20]} 42. a4 {[%emt 0:06:37] aiming for Bb5.} ({But not} 42. Bc6 Rc7 43. Rb8 a4 $18) 42... Qf6 {[%emt 0:05:51]} 43. Qe4 {[%emt 0:01:48]} Qe7 {[%emt 0:01:51]} 44. Bb5 {[%emt 0:08:03]} Rc7 {[%emt 0:02:37]} 45. Rc6 {[%emt 0:01:09]} Rab7 $2 {[%emt 0:01:35] [#] This costs Black the game.} (45... Rxc8 $16 46. Rxc8 g6) 46. Qc2 {[%emt 0:01:15]} ({Not} 46. Bd3 g6 47. Bb5 Rxc8 48. Rxc8 Ra7 $16) (46. Re8 $142 $3 {[%mdl 512]} Qxe8 47. Rxc7 Rxb5 48. axb5 Qxb5 49. Ra7) 46... Rxc8 {[%emt 0:03:09]} 47. Rxc8 {[%emt 0:00:02]} g6 {[%emt 0:00:32]} 48. Re8 {[%emt 0:03:46]} Qd6 {[%emt 0:00:45] [#]} (48... Qc7 49. Qc5 Qxc5 50. dxc5 Rc7) 49. Qc8 $1 {[%emt 0:00:31]} Rb6 {[%emt 0:03:32]} 50. Rd8 {[%emt 0:00:20]} Qe7 {[%emt 0:03:20]} 51. Rd7 {[%emt 0:01:57]} Qb4 {[%emt 0:01:53]} 52. Qe8 {[%emt 0:00:15] Weighted Error Value: White=0.23 (precise) /Black=0.60} 1-0

[Event "Mongolian Championship Women 2022"]
[Site "Chingis Khentii"]
[Date "2022.05.16"]
[Round "5.2"]
[White "Bayarmaa, Bayarjargal"]
[Black "Enkhtuul, Altan-Ulzii"]
[Result "0-1"]
[ECO "A75"]
[WhiteElo "2124"]
[BlackElo "2228"]
[Annotator "TA"]
[PlyCount "94"]
[EventDate "2022.05.12"]
[EventType "tourn"]
[EventCountry "MGL"]
[SourceTitle "playchess.com"]
[Source "ChessBase"]
[SourceQuality "1"]
[TimeControl "40/5400+30:1800+30"]

{[%evp 25,94,45,58,50,50,23,30,25,22,0,18,0,8,16,5,12,10,27,13,0,35,47,52,50,39,-40,-8,-61,-25,-26,137,133,143,134,159,124,168,188,175,162,155,140,166,161,175,156,189,176,183,177,216,202,196,171,166,-7,55,48,42,12,17,43,24,0,8,0,0,0,0,-1606,-1598]} 1. d4 {[%emt 0:00:07]} Nf6 {[%emt 0:00:09]} 2. c4 {[%emt 0:00:05]} c5 {[%emt 0:00:03]} 3. d5 {[%emt 0:00:04]} e6 {[%emt 0:00:03]} 4. Nc3 {[%emt 0:00:07]} exd5 {[%emt 0:00:04]} 5. cxd5 {[%emt 0:00:05]} d6 {[%emt 0:00:03]} 6. e4 {[%emt 0:00:07]} g6 {[%emt 0:00:11]} 7. Nf3 {[%emt 0:00:35]} a6 {[%emt 0:01:32]} 8. a4 {[%emt 0:00:08]} Bg4 {[%emt 0:00:09]} 9. Be2 {[%emt 0:00:14]} Bg7 {[%emt 0:00:20]} 10. O-O {[%emt 0:00:20]} O-O {[%emt 0:00:06]} 11. Bf4 {[%emt 0:01:20]} Bxf3 {[%emt 0:03:11]} 12. Bxf3 {[%emt 0:00:07]} Ne8 {[%emt 0:00:32]} 13. Qd2 {[%emt 0:02:21]} Nd7 {[%emt 0:01:12]} 14. Be2 {[%emt 0:02:40] A75: Modern Benoni: Classical: 9...a6 10 a4 Bg4.} Rb8 {[%emt 0:02:21]} 15. Ra3 {[%emt 0:05:04]} Qe7 {[%emt 0:03:00] [#]} 16. Re1 $146 {[%emt 0:06:52] White has an edge.} ({Predecessor:} 16. Bh6 Nc7 17. a5 Bxh6 18. Qxh6 b5 19. Nd1 Qxe4 20. Rh3 Nf6 21. Ne3 Rfe8 22. Bf3 {0-1 (40) Morozov,G (2351)-Akhmetov,A (2163) Moscow 2012}) 16... Nc7 {[%emt 0:03:28]} 17. Rb3 {[%emt 0:07:08]} Rfe8 {[%emt 0:05:06]} 18. Bf1 {[%emt 0:05:01]} b5 {[%emt 0:10:52]} 19. axb5 {[%emt 0:00:31][%cal Ob5b6]} c4 {[%emt 0:00:19]} 20. Ra3 {[%emt 0:06:05]} axb5 {[%emt 0:00:09]} 21. Ra7 {[%emt 0:02:29]} Rec8 {[%emt 0:01:06]} 22. Bg5 {[%emt 0:09:56]} f6 {[%emt 0:10:13]} 23. Bh4 $36 {[%emt 0:00:47][%mdl 2048] White fights for an advantage.} b4 {[%emt 0:01:46]} 24. Na2 {[%emt 0:02:51][%cal Bc3a2,Ba2b4,Bb4c6][%mdl 32]} Nb5 {[%emt 0:05:49]} 25. Ra4 {[%emt 0:10:21]} (25. Ra6 $14) 25... c3 {[%emt 0:26:57]} 26. Qe3 {[%emt 0:04:40]} ({White should play} 26. bxc3 $11 bxc3 27. Qe3) 26... g5 {[%emt 0:06:24]} (26... cxb2 $5 {[%cal Rb5c3]} 27. Rxb4 Nc7 $15) 27. Nxb4 {[%emt 0:13:04]} gxh4 $2 {[%emt 0:00:32] [#]} (27... Nc5 $1 $11 28. Ra2 Na7 29. bxc3 gxh4) 28. Nc6 $16 {[%emt 0:00:06]} Qe8 {[%emt 0:08:05][%cal Oc3b2]} 29. Nxb8 {[%emt 0:00:32]} Rxb8 {[%emt 0:02:26]} 30. bxc3 {[%emt 0:01:15]} Nc5 {[%emt 0:00:30]} 31. Rb4 {[%emt 0:04:18] Black must now prevent Reb1.} Nc7 {[%emt 0:00:04]} 32. Qf4 {[%emt 0:01:43]} Rd8 {[%emt 0:04:44]} 33. Qxh4 {[%emt 0:03:09]} Qe5 {[%emt 0:02:06]} 34. Re3 {[%emt 0:00:13]} Qg5 {[%emt 0:01:07]} 35. Qh3 {[%emt 0:01:30][%cal Oe4e5] And now e5! would win.} Qh6 {[%emt 0:01:46]} 36. Qg4 {[%emt 0:00:37]} Qg5 {[%emt 0:00:49]} 37. Qd1 {[%emt 0:00:20]} Ra8 {[%emt 0:00:31]} 38. Qb1 {[%emt 0:02:46]} ({Much less strong is} 38. Rg3 $6 Qe5 39. Qg4 Qe7) 38... Rf8 {[%emt 0:01:10]} 39. Rg3 {[%emt 0:02:29]} Qe5 {[%emt 0:00:17]} 40. Qc1 $2 {[%emt 0:00:00]} (40. Rb8 $18 {Hoping for Rxf8+.} Ne8 41. Bb5 Qxe4 42. Qxe4 Nxe4 43. Bxe8 Nxg3 44. hxg3 (44. fxg3 f5 $16)) 40... Kh8 {[%emt 0:00:00]} (40... Nxe4 $11 41. Re3 Bh6) 41. f4 {[%emt 0:09:37]} Qe7 {[%emt 0:01:04]} 42. f5 {[%emt 0:04:01]} N7a6 {[%emt 0:04:20]} 43. Bxa6 {[%emt 0:06:05]} Nxa6 {[%emt 0:00:03]} 44. Rb6 {[%emt 0:00:10]} Nc5 {[%emt 0:01:27]} (44... Qa7 $5 45. Qe3 Bh6 $11) 45. Rb4 {[%emt 0:03:37]} Qa7 {[%emt 0:02:43] [#] Strongly threatening ...Nd3+.} 46. Kh1 {[%emt 0:01:12]} Re8 {[%emt 0:03:00]} 47. Rg4 {[%emt 0:01:46][%mdl 8192]} (47. h3 $11) 47... Nd3 {[%emt 0:00:32][%csl LRb4,LRc1] Never resign too early!  Weighted Error Value: White=0.35/Black=0.17 (very precise)} 0-1

[Event "Mongolian Championship Women 2022"]
[Site "Chingis Khentii"]
[Date "2022.05.16"]
[Round "5.3"]
[White "Tsetsenbileg, Munkhbayar"]
[Black "Amin-Erdene, Bayanmunkh"]
[Result "0-1"]
[ECO "E90"]
[WhiteElo "1830"]
[BlackElo "1425"]
[Annotator "NA RC COMBH"]
[PlyCount "58"]
[EventDate "2022.05.12"]
[EventType "tourn"]
[EventCountry "MGL"]
[SourceTitle "playchess.com"]
[Source "ChessBase"]
[SourceQuality "1"]
[TimeControl "40/5400+30:1800+30"]

{[%evp 16,58,39,12,29,33,72,55,78,-20,0,-56,-42,-143,32767,-110,-55,-55,-63,-95,-35,-159,-153,-406,-366,-529,32767,-792,-852,-1241,-1396,-1430,32767,-1892,32767,32767,32767,-1769,-1683,-29997,-29998,-29998,-29999,-29999,-29999]} 1. d4 {[%emt 0:00:02]} Nf6 {[%emt 0:00:09]} 2. c4 {[%emt 0:00:07]} g6 {[%emt 0:00:03]} 3. Nc3 {[%emt 0:00:58]} Bg7 {[%emt 0:00:06]} 4. e4 {[%emt 0:00:05]} d6 {[%emt 0:00:03]} 5. h3 {[%emt 0:00:45]} O-O {[%emt 0:00:18]} 6. Nf3 {[%emt 0:00:06]} e5 {[%emt 0:00:32]} 7. d5 {[%emt 0:00:34]} Nh5 {[%emt 0:00:22]} 8. g3 {[%emt 0:06:45]} Na6 {[%emt 0:17:51]} 9. Bg5 {[%emt 0:07:04]} (9. Be2 $14) 9... Qe8 {[%emt 0:09:06]} 10. Be2 {[%emt 0:04:46]} f6 {[%emt 0:02:42]} (10... f5 $1 $11) 11. Be3 {[%emt 0:05:47]} f5 $1 {[%emt 0:02:12]} 12. g4 {[%emt 0:14:40]} ({White should try} 12. exf5 $14 gxf5 13. Nh4) 12... Nf4 {[%emt 0:03:52]} 13. gxf5 {[%emt 0:02:03]} (13. exf5 $11 gxf5 14. Bxf4 exf4 15. g5) 13... gxf5 {[%emt 0:02:12]} 14. Kd2 {[%emt 0:05:28]} ({Of course not} 14. Bxf4 exf4 15. Rg1 Qe7 $17) (14. a3 $15) 14... Nxe2 {[%emt 0:04:03]} 15. Kxe2 {[%emt 0:00:23]} fxe4 {[%emt 0:00:21]} (15... Qh5 $17 16. Ke1 f4) 16. Ng5 {[%emt 0:04:36]} Bf5 {[%emt 0:07:12]} 17. Ngxe4 {[%emt 0:02:10]} Qg6 {[%emt 0:00:45]} (17... b5 $17 18. cxb5 Bxe4 19. Nxe4 Qxb5+ 20. Qd3 Qxb2+ 21. Qd2 Qb5+ 22. Qd3 Qxd3+ 23. Kxd3 c6) 18. Rg1 {[%emt 0:04:21]} (18. Qd3 $15) 18... Bxe4 {[%emt 0:11:10]} 19. Kd2 $2 {[%emt 0:04:30]} (19. Rxg6 $17 Bf3+ 20. Kd2 Bxd1 21. Rxg7+ Kxg7 22. Rxd1) 19... Qf5 {[%emt 0:11:59]} 20. f4 {[%emt 0:24:49]} (20. Rg5 {keeps fighting.} Qf3 21. Nxe4 Qxe4 22. Qe2) 20... Nb4 {[%emt 0:06:23]} 21. Rg5 {[%emt 0:01:30] [#]} (21. Qb3 $142 exf4 22. Bf2) 21... exf4 $1 {[%emt 0:00:22]} 22. Rxf5 {[%emt 0:00:44]} fxe3+ {[%emt 0:00:07]} 23. Ke2 {[%emt 0:03:57]} Bxf5 {[%emt 0:00:27]} 24. Qg1 {[%emt 0:02:01]} Bd3+ {[%emt 0:01:01]} 25. Kxe3 {[%emt 0:00:10]} Rae8+ {[%emt 0:00:09]} 26. Kd2 $19 {[%emt 0:00:01]} Kh8 {[%emt 0:01:04]} 27. Qg5 {[%emt 0:01:37]} Rf2+ {[%emt 0:00:22]} 28. Kc1 {[%emt 0:00:22]} Re1+ {[%emt 0:00:07]} 29. Nd1 {[%emt 0:00:11]} Rc2+ {[%emt 0:00:06]} 0-1